bitfinex-derivatives/quotes_BTCF0:USTF0_20241022
["timestamp","ask_amount","ask_price","bid_price","bid_amount"]
[1729626897035,0.18268,67598.0,67596.0,0.22314004]
[1729626897224,0.38230949,67597.0,67596.0,0.22314004]
[1729626897535,0.09551049,67597.0,67596.0,0.22314004]
[1729626897832,0.09551049,67597.0,67596.0,0.10181255]
[1729626898136,0.09551049,67597.0,67596.0,0.22185138]
[1729626898641,0.15234317,67597.0,67596.0,0.10181255]
[1729626900042,0.15234317,67597.0,67595.0,0.074002]
[1729626900043,0.04612519,67596.0,67595.0,0.074002]
[1729626900232,0.12012719,67596.0,67595.0,0.11934367]
[1729626900431,0.12012719,67596.0,67595.0,0.544803]
[1729626900432,0.04612519,67596.0,67595.0,0.544803]
[1729626900728,0.04612519,67596.0,67595.0,0.184003]
[1729626901325,0.15480519,67596.0,67585.0,0.0656]
[1729626901525,0.184013,67586.0,67583.0,0.0717]
[1729626901727,0.11,67586.0,67583.0,0.1817]
[1729626901924,0.11,67586.0,67585.0,0.074014]
[1729626902133,0.3608,67588.0,67585.0,0.11]
[1729626902134,0.4708,67588.0,67585.0,0.11]
[1729626902322,0.3608,67588.0,67585.0,0.074013]
[1729626902527,0.074012,67587.0,67585.0,0.074013]
[1729626902929,0.074012,67587.0,67586.0,0.074013]
[1729626903528,0.3608,67588.0,67586.0,0.074013]
[1729626903730,0.434811,67588.0,67586.0,0.074013]
[1729626903931,0.3608,67588.0,67583.0,0.2417]
[1729626904130,0.244013,67586.0,67583.0,0.145716]
[1729626904835,0.074014,67585.0,67583.0,0.145716]
[1729626905733,0.38228524,67588.0,67583.0,0.0717]
[1729626905939,0.38228524,67588.0,67587.0,0.17]
[1729626905940,0.45629524,67588.0,67587.0,0.17]
[1729626906129,0.45629524,67588.0,67587.0,0.244012]
[1729626908026,0.45629524,67588.0,67587.0,0.17]
[1729626908533,0.45629524,67588.0,67587.0,0.08836855]
[1729626909038,0.62629524,67588.0,67587.0,0.08836855]
[1729626909340,0.55228524,67588.0,67587.0,0.11923904]
[1729626909634,0.62629524,67588.0,67587.0,0.11923904]
[1729626910232,0.62629524,67588.0,67583.0,0.10316613]
[1729626910233,0.074017,67583.0,67581.0,0.0685]
[1729626910430,0.074017,67583.0,67582.0,0.36089974]
[1729626910626,0.074017,67583.0,67582.0,0.11923294]
[1729626910831,0.074017,67583.0,67582.0,0.11934366]
[1729626911638,0.074017,67583.0,67582.0,0.19336066]
[1729626912039,0.074017,67583.0,67582.0,0.11934366]
[1729626913440,0.074017,67583.0,67582.0,0.19336066]
[1729626915034,0.074017,67583.0,67582.0,0.29356348]
[1729626915643,0.074017,67583.0,67582.0,0.074017]
[1729626917442,0.074017,67582.0,67581.0,0.0685]
[1729626918743,0.074017,67582.0,67581.0,0.142518]
[1729626923539,0.02956822,67582.0,67581.0,0.36239668]
[1729626923747,0.17,67584.0,67581.0,0.36239668]
[1729626923947,0.074016,67583.0,67582.0,0.29389568]
[1729626926642,0.074016,67583.0,67582.0,0.53552276]
[1729626926843,0.5308,67583.0,67581.0,0.06605647]
[1729626927037,0.074024,67576.0,67553.0,0.209]
[1729626927349,0.074024,67576.0,67554.0,0.074048]
[1729626927350,0.17,67555.0,67554.0,0.074048]
[1729626927748,0.434838,67563.0,67553.0,0.209]
[1729626927749,0.17,67559.0,67557.0,0.074044]
[1729626929040,0.17,67559.0,67553.0,0.209]
[1729626929236,0.17,67559.0,67558.0,0.074043]
[1729626929439,0.3608,67563.0,67562.0,0.074039]
[1729626929649,0.074034,67567.0,67563.0,0.074037]
[1729626929856,0.3608,67564.0,67563.0,0.074037]
[1729626930543,0.434837,67564.0,67563.0,0.074037]
[1729626933251,0.434837,67564.0,67558.0,0.17]
[1729626933252,0.3608,67564.0,67558.0,0.17]
[1729626933451,0.07404,67561.0,67560.0,0.074039]
[1729626935050,0.3608,67564.0,67558.0,0.17]
[1729626935260,0.074037,67565.0,67564.0,0.074037]
[1729626935463,0.00076,67570.0,67569.0,0.074031]
[1729626935754,0.02669896,67584.0,67577.0,0.074021]
[1729626935953,0.074022,67578.0,67577.0,0.244021]
[1729626936450,0.182689,67589.0,67581.0,0.074018]
[1729626936638,0.182689,67589.0,67582.0,0.434817]
[1729626936639,0.074016,67583.0,67582.0,0.434817]
[1729626937045,0.02709643,67590.0,67582.0,0.91845507]
[1729626937240,0.074008,67590.0,67589.0,0.604809]
[1729626937446,0.073998,67600.0,67592.0,0.074005]
[1729626937447,0.074005,67593.0,67592.0,0.074005]
[1729626937957,0.073998,67600.0,67595.0,0.074003]
[1729626938151,0.02694471,67602.0,67595.0,0.604803]
[1729626938351,0.073998,67600.0,67595.0,0.604803]
[1729626939852,0.10094071,67602.0,67595.0,0.604803]
[1729626940654,0.073999,67599.0,67595.0,0.604803]
[1729626941958,0.074,67598.0,67595.0,0.604803]
[1729626942755,0.19406293,67596.0,67595.0,0.244003]
[1729626961161,0.26806493,67596.0,67595.0,0.244003]
[1729626962466,0.26806493,67596.0,67595.0,0.2880134]
[1729626962965,0.26806493,67596.0,67595.0,0.244003]
[1729626963758,0.43806493,67596.0,67592.0,0.41966052]
[1729626963959,0.43806493,67596.0,67592.0,0.40495387]
[1729626963960,0.244005,67593.0,67592.0,0.40495387]
[1729626964159,0.244005,67593.0,67592.0,0.3608]
[1729626964370,0.604805,67593.0,67592.0,0.04415387]
[1729626964869,0.604805,67593.0,67591.0,0.074006]
[1729626964870,0.074006,67592.0,67591.0,0.074006]
[1729626965269,0.074006,67592.0,67591.0,0.14734767]
[1729626965681,0.074006,67592.0,67591.0,0.074006]
[1729626968575,0.074006,67592.0,67591.0,0.16943249]
[1729626970770,0.074006,67592.0,67591.0,0.16924888]
[1729626970771,0.244006,67592.0,67591.0,0.16924888]
[1729626971078,0.244006,67592.0,67581.0,0.00221914]
[1729626971079,0.074007,67591.0,67590.0,0.05907221]
[1729626971370,0.074009,67589.0,67588.0,0.05907221]
[1729626971673,0.074009,67589.0,67581.0,0.00221914]
[1729626971674,0.074012,67587.0,67582.0,0.07382239]
[1729626971877,0.7008,67583.0,67575.0,0.07382239]
[1729626972077,0.434824,67576.0,67573.0,0.07382239]
[1729626972375,0.074029,67571.0,67570.0,0.07382239]
[1729626972675,0.07403,67570.0,67569.0,0.14785339]
[1729626972875,0.17,67571.0,67568.0,0.07382239]
[1729626973066,0.074031,67569.0,67568.0,0.14785439]
[1729626973267,0.074031,67569.0,67568.0,0.074032]
[1729626973775,0.244029,67571.0,67570.0,0.07403]
[1729626973968,0.074029,67571.0,67570.0,0.07403]
[1729626975069,0.10111564,67571.0,67570.0,0.07403]
[1729626977672,0.074029,67571.0,67570.0,0.07403]
[1729626979580,0.074033,67569.0,67568.0,0.074032]
[1729626979784,0.434833,67569.0,67568.0,0.074032]
[1729626981187,0.434833,67569.0,67568.0,0.244032]
[1729626981483,0.3608,67569.0,67568.0,0.244032]
[1729626983583,0.3608,67569.0,67568.0,0.31785439]
[1729626985178,0.3608,67569.0,67568.0,0.244032]
[1729626986585,0.434831,67569.0,67568.0,0.244032]
[1729626986784,0.39037261,67569.0,67568.0,0.16943056]
[1729626986978,0.39037261,67569.0,67567.0,0.07382239]
[1729626987178,0.17,67568.0,67566.0,0.07382239]
[1729626987489,0.074035,67566.0,67565.0,0.07382239]
[1729626987786,0.244035,67566.0,67565.0,0.16950716]
[1729626988183,0.074035,67566.0,67565.0,0.16950716]
[1729626988384,0.074035,67566.0,67565.0,0.16972077]
[1729626989785,0.39037261,67569.0,67568.0,0.074032]
[1729626990107,0.49901261,67569.0,67568.0,0.244032]
[1729626990284,0.42498161,67569.0,67568.0,0.244032]
[1729626991987,0.42498161,67569.0,67568.0,0.074032]
[1729626994094,0.31634161,67569.0,67568.0,0.074032]
[1729626994299,0.31634161,67569.0,67568.0,0.244032]
[1729626999291,0.31634161,67569.0,67568.0,0.41335527]
[1729626999690,0.31634161,67569.0,67568.0,0.33970428]
[1729627000299,0.31634161,67569.0,67568.0,0.33978192]
[1729627003598,0.39037261,67569.0,67568.0,0.33986136]
[1729627004405,0.39037261,67569.0,67568.0,0.16986136]
[1729627005700,0.39037261,67569.0,67568.0,0.074032]
[1729627007999,0.42703739,67569.0,67568.0,0.074032]
[1729627009404,0.42703739,67569.0,67560.0,0.362]
[1729627009703,0.604839,67562.0,67552.0,0.074049]
[1729627009907,0.64117239,67562.0,67550.0,0.1318]
[1729627010096,0.74977239,67562.0,67551.0,0.141951]
[1729627010503,0.74977239,67562.0,67552.0,0.074049]
[1729627011307,0.74977239,67562.0,67553.0,0.074049]
[1729627011505,0.74977239,67562.0,67551.0,0.2379]
[1729627011710,0.74977239,67562.0,67557.0,0.074044]
[1729627012902,0.67573339,67562.0,67554.0,0.17]
[1729627013206,0.074044,67558.0,67557.0,0.17]
[1729627013407,0.074044,67558.0,67557.0,0.244044]
[1729627013913,0.074044,67558.0,67557.0,0.17112061]
[1729627014410,0.074044,67558.0,67557.0,0.25988105]
[1729627014603,0.074044,67558.0,67557.0,0.25990142]
[1729627015497,0.074044,67558.0,67557.0,0.17114098]
[1729627016208,0.074044,67558.0,67557.0,0.09709698]
[1729627016405,0.244044,67558.0,67557.0,0.09709698]
[1729627016909,0.074044,67558.0,67557.0,0.09709698]
[1729627017300,0.244044,67558.0,67557.0,0.09709698]
[1729627017500,0.38773741,67562.0,67557.0,0.09709698]
[1729627017697,0.074044,67557.0,67556.0,0.074045]
[1729627017899,0.074044,67557.0,67556.0,0.17113038]
[1729627020306,0.074044,67557.0,67556.0,0.28689878]
[1729627021706,0.074044,67557.0,67556.0,0.21285378]
[1729627022404,0.17,67558.0,67553.0,0.074049]
[1729627022614,0.074047,67555.0,67554.0,0.28701464]
[1729627024206,0.434847,67555.0,67554.0,0.28701464]
[1729627024405,0.434847,67555.0,67552.0,0.08873782]
[1729627024406,0.5308,67555.0,67552.0,0.08873782]
[1729627024710,0.5308,67555.0,67543.0,0.00222016]
[1729627024711,0.074048,67554.0,67553.0,0.0975582]
[1729627024910,0.244048,67554.0,67553.0,0.17151633]
[1729627025214,0.244048,67554.0,67553.0,0.07395813]
[1729627025408,0.074049,67553.0,67552.0,0.07395813]
[1729627025614,0.352649,67553.0,67552.0,0.07395813]
[1729627026113,0.07405,67552.0,67551.0,0.07395813]
[1729627026312,0.074051,67551.0,67550.0,0.07395813]
[1729627026509,0.244051,67551.0,67550.0,0.07395813]
[1729627027411,0.17,67551.0,67549.0,0.07395813]
[1729627027619,0.2376,67550.0,67548.0,0.07395813]
[1729627027811,0.244053,67549.0,67548.0,0.07395813]
[1729627028317,0.244053,67549.0,67547.0,0.07395813]
[1729627028506,0.5308,67548.0,67546.0,0.07395813]
[1729627028813,0.5308,67548.0,67543.0,0.00222016]
[1729627028814,0.17,67547.0,67543.0,0.00222016]
[1729627029118,0.244059,67544.0,67543.0,0.00222016]
[1729627033416,0.27013816,67544.0,67543.0,0.00222016]
[1729627035125,0.37865816,67544.0,67543.0,0.00222016]
[1729627036121,0.37865816,67544.0,67543.0,0.07617829]
[1729627036310,0.37865816,67544.0,67543.0,0.00222016]
[1729627036920,0.37865816,67544.0,67543.0,0.07617829]
[1729627037807,0.73945816,67544.0,67543.0,0.07617829]
[1729627038212,0.73945816,67544.0,67543.0,0.00222016]
[1729627039020,0.73945816,67544.0,67543.0,0.07604904]
[1729627039216,0.73945816,67544.0,67543.0,0.00222016]
[1729627039518,0.37865816,67544.0,67543.0,0.09863313]
[1729627039715,0.73945816,67544.0,67543.0,0.09863313]
[1729627040612,0.8875098,67544.0,67543.0,0.09863313]
[1729627045915,0.8875098,67544.0,67543.0,0.09866815]
[1729627047821,0.7789898,67544.0,67543.0,0.09866815]
[1729627048018,0.8875098,67544.0,67543.0,0.09866815]
[1729627050614,0.8875098,67544.0,67543.0,0.09883385]
[1729627051022,0.8875098,67544.0,67543.0,0.0613799]
[1729627051622,0.8875098,67544.0,67543.0,0.00222016]
[1729627052324,0.8275098,67544.0,67543.0,0.00222016]
[1729627053830,0.97556144,67544.0,67543.0,0.00222016]
[1729627054721,0.86704144,67544.0,67543.0,0.00222016]
[1729627054915,0.97556144,67544.0,67543.0,0.00222016]
[1729627056634,0.97556144,67544.0,67543.0,0.07616983]
[1729627059029,0.97556144,67544.0,67543.0,0.09908633]
[1729627060229,0.97556144,67544.0,67543.0,0.0990793]
[1729627062834,0.97556144,67544.0,67543.0,0.21453612]
[1729627063735,0.97556144,67544.0,67543.0,0.0990793]
[1729627063932,0.97556144,67544.0,67543.0,0.00222016]
[1729627064542,0.97556144,67544.0,67543.0,0.21466915]
[1729627065849,0.86556144,67544.0,67543.0,0.21466915]
[1729627066053,0.97556144,67544.0,67543.0,0.09914201]
[1729627066441,0.97556144,67544.0,67543.0,0.00222016]
[1729627068443,0.79298244,67544.0,67540.0,0.0686]
[1729627068652,0.10836,67543.0,67540.0,0.0686]
[1729627068847,0.182421,67542.0,67540.0,0.0686]
[1729627069043,0.292421,67542.0,67540.0,0.0686]
[1729627070153,0.65766328,67544.0,67543.0,0.07406]
[1729627070353,0.29610328,67544.0,67543.0,0.07406]
[1729627070849,0.29610328,67544.0,67543.0,0.18406]
[1729627071050,0.29610328,67544.0,67543.0,0.39836172]
[1729627080154,0.40610328,67544.0,67543.0,0.39836172]
[1729627081958,0.40610328,67544.0,67543.0,0.28182709]
[1729627081959,0.36163098,67544.0,67543.0,0.28182709]
[1729627082957,0.25163098,67544.0,67543.0,0.28182709]
[1729627086466,0.25163098,67544.0,67543.0,0.28184388]
[1729627087959,0.39968262,67544.0,67543.0,0.28184388]
[1729627088757,0.39968262,67544.0,67543.0,0.63743629]
[1729627090265,0.14803849,67550.0,67543.0,1.84157933]
[1729627090470,0.14803849,67550.0,67549.0,0.544853]
[1729627090664,0.14803849,67550.0,67549.0,1.04801451]
[1729627090862,0.14803849,67550.0,67549.0,1.62417111]
[1729627091061,0.14803849,67550.0,67549.0,1.6201742]
[1729627091461,0.14803849,67550.0,67549.0,1.4881376]
[1729627091874,0.14803849,67550.0,67549.0,1.5508376]
[1729627092365,0.14803849,67550.0,67549.0,1.39814716]
[1729627093960,0.14803849,67550.0,67549.0,1.516429]
[1729627094965,0.14803849,67550.0,67549.0,1.40549639]
[1729627095165,0.14803849,67550.0,67549.0,1.28721455]
[1729627095663,0.14803849,67550.0,67549.0,1.28681293]
[1729627096067,0.14802315,67557.0,67549.0,1.99681293]
[1729627096275,0.0678,67577.0,67556.0,0.6908]
[1729627096463,0.0678,67577.0,67576.0,0.4708]
[1729627096770,0.09397541,67577.0,67576.0,0.4708]
[1729627097179,0.16799741,67577.0,67576.0,0.4708]
[1729627097667,0.10019741,67577.0,67576.0,0.4708]
[1729627097865,0.10019741,67577.0,67576.0,0.544824]
[1729627097866,0.02617541,67577.0,67576.0,0.544824]
[1729627098066,0.074015,67584.0,67577.0,0.074022]
[1729627098272,0.074015,67584.0,67576.0,0.4708]
[1729627098273,0.074015,67584.0,67583.0,0.11]
[1729627099582,0.074012,67587.0,67583.0,0.11]
[1729627099772,0.074012,67587.0,67586.0,0.11]
[1729627100075,0.184013,67586.0,67584.0,0.11]
[1729627100278,0.074013,67586.0,67583.0,0.17]
[1729627100879,0.14796401,67584.0,67583.0,0.17]
[1729627102078,0.14796401,67584.0,67583.0,0.244016]
[1729627106771,0.14796401,67584.0,67583.0,0.604816]
[1729627107676,0.14795306,67589.0,67583.0,0.604816]
[1729627107873,0.14795306,67589.0,67588.0,0.60481]
[1729627108072,0.14795306,67589.0,67588.0,0.609439]
[1729627108468,0.14795306,67589.0,67588.0,0.61684448]
[1729627108872,0.14795306,67589.0,67588.0,0.66113789]
[1729627109184,0.14795306,67589.0,67588.0,1.06072448]
[1729627110274,0.14795306,67589.0,67588.0,1.04869]
[1729627111879,0.10351931,67589.0,67588.0,1.04869]
[1729627112279,0.10351931,67589.0,67588.0,1.09264189]
[1729627112475,0.10351931,67589.0,67588.0,1.04869]
[1729627112683,0.10351931,67589.0,67588.0,1.09264264]
[1729627114275,0.10351931,67589.0,67588.0,1.04869]
[1729627114772,0.10351931,67589.0,67588.0,1.09263837]
[1729627115173,0.10351931,67589.0,67588.0,1.04869]
[1729627117178,0.10351931,67589.0,67588.0,1.11237627]
[1729627117375,0.05168167,67589.0,67588.0,1.1197817]
[1729627117984,0.05168167,67589.0,67588.0,1.06072382]
[1729627118579,0.05168167,67589.0,67588.0,1.11935948]
[1729627118981,0.05168167,67589.0,67588.0,1.06072382]
[1729627119184,0.19963473,67589.0,67588.0,1.06072382]
[1729627122185,0.19963473,67589.0,67588.0,1.04869]
[1729627122390,0.19963473,67589.0,67588.0,1.11072381]
[1729627125394,0.19963473,67589.0,67588.0,1.10331839]
[1729627126092,0.19963473,67589.0,67588.0,1.10331827]
[1729627126995,0.19963473,67589.0,67588.0,1.30821263]
[1729627127497,0.19963473,67589.0,67588.0,1.30358436]
[1729627127793,0.14794431,67593.0,67592.0,0.074006]
[1729627128098,0.073988,67609.0,67595.0,0.074003]
[1729627128302,1.5,67607.0,67595.0,0.49889736]
[1729627128496,0.02614083,67603.0,67595.0,0.49889736]
[1729627129189,0.11406293,67596.0,67595.0,0.94732543]
[1729627129794,0.11406293,67596.0,67595.0,0.85982775]
[1729627130796,0.11406293,67596.0,67595.0,0.41602775]
[1729627131783,0.06963354,67596.0,67595.0,0.41602775]
[1729627131993,0.06963354,67596.0,67595.0,0.96982775]
[1729627132205,0.06963354,67596.0,67595.0,0.97445575]
[1729627132500,0.01779958,67596.0,67595.0,0.97522342]
[1729627132690,0.01779958,67596.0,67595.0,1.10384721]
[1729627132891,0.01779958,67596.0,67595.0,0.29004072]
[1729627133092,0.01779958,67596.0,67595.0,0.38800782]
[1729627133903,0.01779958,67596.0,67595.0,0.184003]
[1729627136697,0.05845451,67596.0,67595.0,0.184003]
[1729627137497,0.05849166,67596.0,67595.0,0.184003]
[1729627138496,0.05849166,67596.0,67595.0,0.074003]
[1729627139003,0.23082942,67596.0,67595.0,0.184003]
[1729627139599,0.23059241,67596.0,67595.0,0.184003]
[1729627140200,0.074005,67593.0,67592.0,0.3608]
[1729627140402,0.27136044,67593.0,67592.0,0.434805]
[1729627140602,0.27136044,67593.0,67588.0,0.3608]
[1729627140603,0.25049371,67593.0,67588.0,0.3608]
[1729627140790,0.074015,67584.0,67583.0,0.074015]
[1729627141100,0.26991647,67584.0,67583.0,0.074015]
[1729627141598,0.74945977,67584.0,67569.0,0.00221984]
[1729627141802,0.11,67570.0,67569.0,0.07625084]
[1729627142003,0.21796,67575.0,67569.0,0.20712128]
[1729627142199,0.291985,67575.0,67574.0,0.074026]
[1729627142396,0.10796,67575.0,67574.0,0.1330848]
[1729627142590,0.10796,67575.0,67570.0,0.17]
[1729627142793,0.1285,67578.0,67569.0,0.43814536]
[1729627142794,0.17,67571.0,67569.0,0.43814536]
[1729627143093,0.17,67571.0,67570.0,0.07403]
[1729627143490,0.17,67571.0,67569.0,0.00341984]
[1729627143491,0.07403,67570.0,67569.0,0.00341984]
[1729627143709,0.074037,67564.0,67563.0,0.362]
[1729627144008,0.07404,67561.0,67557.0,0.14796852]
[1729627144201,0.17,67558.0,67557.0,0.14796852]
[1729627144402,0.17,67560.0,67554.0,0.17]
[1729627144702,0.0609,67563.0,67561.0,0.074039]
[1729627145097,0.0609,67563.0,67562.0,0.17]
[1729627145296,0.1689,67563.0,67562.0,0.244039]
[1729627145501,0.1689,67563.0,67562.0,0.074039]
[1729627145695,0.3389,67563.0,67562.0,0.074039]
[1729627146411,0.074039,67562.0,67558.0,0.074043]
[1729627146614,0.5308,67560.0,67551.0,0.0441505]
[1729627146804,0.5308,67552.0,67547.0,0.00222022]
[1729627147006,0.244054,67548.0,67547.0,0.00222022]
[1729627147406,0.688174,67548.0,67547.0,0.00222022]
[1729627147802,0.0613,67551.0,67547.0,0.17222022]
[1729627148001,0.0613,67551.0,67547.0,0.00222022]
[1729627148002,0.108,67548.0,67547.0,0.00222022]
[1729627148310,0.182054,67548.0,67547.0,0.00222022]
[1729627149911,0.182094,67548.0,67547.0,0.00222022]
[1729627151310,0.074054,67548.0,67547.0,0.00222022]
[1729627151618,0.3608,67570.0,67547.0,0.53302022]
[1729627151808,0.244045,67557.0,67552.0,0.17]
[1729627152116,0.17,67554.0,67553.0,0.074049]
[1729627152807,0.27928,67554.0,67547.0,0.36302022]
[1729627153008,0.244054,67548.0,67547.0,0.00222022]
[1729627155211,0.688174,67548.0,67547.0,0.00222022]
[1729627155412,0.748474,67548.0,67547.0,0.00222022]
[1729627155913,0.94526251,67548.0,67547.0,0.00222022]
[1729627156212,0.243674,67548.0,67547.0,0.00222022]
[1729627156414,0.134354,67548.0,67547.0,0.00222022]
[1729627156713,0.243674,67548.0,67547.0,0.00222022]
[1729627157414,0.134354,67548.0,67547.0,0.00222022]
[1729627157617,0.243674,67548.0,67547.0,0.00222022]
[1729627157913,0.78374,67548.0,67541.0,0.3608]
[1729627158113,0.074064,67539.0,67537.0,0.074065]
[1729627158318,0.17,67538.0,67537.0,0.074065]
[1729627158514,0.17,67538.0,67534.0,0.43487]
[1729627158515,0.074066,67537.0,67534.0,0.43487]
[1729627158816,0.17,67535.0,67534.0,0.07407]
[1729627159018,0.074072,67532.0,67530.0,0.074074]
[1729627159204,0.17,67531.0,67530.0,0.074074]
[1729627159413,0.17,67531.0,67527.0,0.074077]
[1729627159731,0.17,67528.0,67527.0,0.074077]
[1729627160022,0.074079,67525.0,67524.0,0.1288]
[1729627160215,0.074081,67524.0,67523.0,0.00222108]
[1729627161120,0.183401,67524.0,67523.0,0.00222108]
[1729627161906,0.544201,67524.0,67523.0,0.00422108]
[1729627162619,0.074081,67524.0,67523.0,0.00422108]
[1729627162810,0.074072,67532.0,67526.0,0.074077]
[1729627163009,0.074074,67531.0,67528.0,0.17]
[1729627163215,0.10932,67530.0,67526.0,0.074077]
[1729627163513,0.17,67535.0,67528.0,0.17]
[1729627163812,0.3608,67536.0,67535.0,0.074069]
[1729627164517,0.3608,67536.0,67535.0,0.140869]
[1729627165021,0.604867,67536.0,67535.0,0.0668]
[1729627165209,0.975,67536.0,67527.0,0.0441571]
[1729627165521,0.244076,67528.0,67527.0,0.0012]
[1729627165820,0.074081,67524.0,67521.0,0.064]
[1729627166006,0.17,67522.0,67521.0,0.064]
[1729627166206,0.17,67522.0,67521.0,0.1081571]
[1729627166516,0.17,67522.0,67515.0,0.1835471]
[1729627166517,0.074086,67519.0,67515.0,0.1835471]
[1729627166819,0.11809284,67518.0,67515.0,0.1835471]
[1729627167014,0.11809284,67518.0,67515.0,0.0653]
[1729627167315,0.074088,67517.0,67515.0,0.1094571]
[1729627167917,0.074088,67517.0,67516.0,0.0441571]
[1729627168113,0.074088,67517.0,67515.0,0.1094571]
[1729627168320,0.074088,67517.0,67515.0,0.0653]
[1729627168524,0.074088,67517.0,67514.0,0.3608]
[1729627168819,0.17,67515.0,67514.0,0.3608]
[1729627169221,0.10936,67518.0,67517.0,0.074088]
[1729627170019,0.27936,67518.0,67517.0,0.074088]
[1729627170213,0.27936,67518.0,67513.0,0.07392552]
[1729627170408,0.27936,67518.0,67512.0,0.00222159]
[1729627170409,0.074093,67513.0,67512.0,0.00222159]
[1729627170612,0.17,67514.0,67512.0,0.00222159]
[1729627170820,0.10936,67513.0,67512.0,0.17222159]
[1729627171013,0.10936,67516.0,67515.0,0.07409]
[1729627171215,0.10936,67516.0,67515.0,0.60489]
[1729627171414,0.5308,67524.0,67515.0,0.60489]
[1729627171415,0.36156,67524.0,67515.0,0.62665872]
[1729627171614,0.10936,67523.0,67522.0,0.434883]
[1729627171815,0.10936,67523.0,67522.0,0.498883]
[1729627172023,0.17,67523.0,67522.0,0.138083]
[1729627172319,0.12551144,67523.0,67522.0,0.138083]
[1729627172523,0.12551144,67523.0,67522.0,0.3608]
[1729627172720,0.38738772,67533.0,67522.0,0.4563198]
[1729627172721,0.10936,67531.0,67522.0,0.4563198]
[1729627172919,0.10936,67531.0,67527.0,0.074076]
[1729627173121,0.17,67528.0,67527.0,0.074076]
[1729627173724,0.17,67532.0,67528.0,0.074076]
[1729627173926,0.10936,67531.0,67529.0,0.0642]
[1729627174317,0.3608,67533.0,67531.0,0.074073]
[1729627175320,0.074074,67530.0,67529.0,0.0642]
[1729627176420,0.49905,67552.0,67529.0,0.0642]
[1729627176621,0.49905,67552.0,67535.0,0.3608]
[1729627176622,0.17,67539.0,67535.0,0.3608]
[1729627176822,0.074066,67538.0,67536.0,0.1687808]
[1729627177120,0.074066,67538.0,67537.0,0.0947138]
[1729627177923,0.074067,67536.0,67535.0,0.3608]
[1729627178223,0.17,67536.0,67535.0,0.45539972]
[1729627178429,0.244067,67536.0,67535.0,0.3608]
[1729627179721,0.353427,67536.0,67535.0,0.3608]
[1729627181523,0.244067,67536.0,67535.0,0.3608]
[1729627181725,0.356707,67536.0,67535.0,0.3608]
[1729627183525,0.074067,67536.0,67535.0,0.45554812]
[1729627183727,0.356707,67536.0,67535.0,0.45554812]
[1729627184730,0.244067,67536.0,67535.0,0.45554812]
[1729627184935,0.074067,67536.0,67535.0,0.45554812]
[1729627185431,0.14806479,67538.0,67537.0,0.074066]
[1729627185737,0.14806479,67538.0,67537.0,0.45122012]
[1729627186221,0.14806479,67538.0,67537.0,0.6849852]
[1729627186424,0.14806479,67538.0,67537.0,0.45122012]
[1729627187133,0.14806479,67538.0,67537.0,0.244066]
[1729627187429,0.14806479,67538.0,67537.0,0.074066]
[1729627187635,0.22212979,67538.0,67535.0,0.428]
[1729627187830,0.244067,67536.0,67535.0,0.066]
[1729627188033,0.074073,67531.0,67529.0,0.0642]
[1729627188425,0.074069,67535.0,67530.0,0.074073]
[1729627188728,0.22213079,67538.0,67534.0,0.074069]
[1729627188938,0.074067,67537.0,67534.0,0.074069]
[1729627189328,0.074067,67537.0,67535.0,0.074068]
[1729627190836,0.074069,67535.0,67531.0,0.244073]
[1729627191042,0.074069,67535.0,67532.0,0.074071]
[1729627191234,0.07407,67534.0,67532.0,0.074071]
[1729627191431,0.17,67536.0,67529.0,0.0642]
[1729627191733,0.5308,67533.0,67523.0,0.0613]
[1729627191934,0.17,67524.0,67515.0,0.1263]
[1729627192136,0.17,67516.0,67515.0,0.1263]
[1729627192336,0.074088,67518.0,67516.0,0.074089]
[1729627193041,0.074083,67522.0,67516.0,0.074089]
[1729627193236,0.074083,67522.0,67521.0,0.074084]
[1729627194027,0.07408,67525.0,67521.0,0.074084]
[1729627194230,0.07408,67525.0,67518.0,0.17]
[1729627194231,0.07408,67525.0,67523.0,0.08860735]
[1729627194429,0.07408,67525.0,67524.0,0.0954028]
[1729627194633,0.12008,67526.0,67524.0,0.25809015]
[1729627194840,0.3608,67533.0,67525.0,0.18403671]
[1729627195136,0.074075,67529.0,67526.0,0.42788682]
[1729627195339,0.0008,67533.0,67528.0,0.44943299]
[1729627195539,0.17,67540.0,67531.0,0.244072]
[1729627195743,0.07407,67534.0,67532.0,0.15667583]
[1729627195939,0.07407,67534.0,67533.0,0.09517583]
[1729627196139,0.24407,67534.0,67533.0,0.09517583]
[1729627197041,0.17,67534.0,67528.0,0.08863299]
[1729627197354,0.244075,67529.0,67527.0,0.08863299]
[1729627197641,0.244075,67529.0,67528.0,0.09490718]
[1729627197842,0.604875,67529.0,67528.0,0.09490718]
[1729627198034,0.074078,67527.0,67523.0,0.08863299]
[1729627198230,0.65092,67529.0,67526.0,0.08863299]
[1729627198231,0.48092,67529.0,67526.0,0.08863299]
[1729627198436,0.074076,67528.0,67527.0,0.09518668]
[1729627198639,0.074076,67528.0,67527.0,0.18381967]
[1729627199142,0.364196,67529.0,67527.0,0.18381967]
[1729627199337,0.364196,67529.0,67528.0,0.09518668]
[1729627200138,0.244076,67529.0,67528.0,0.09518668]
[1729627200533,0.17,67529.0,67528.0,0.09526601]
[1729627200738,0.244075,67529.0,67528.0,0.09526601]
[1729627201539,0.074081,67524.0,67522.0,0.0615]
[1729627201740,0.074081,67524.0,67523.0,0.09518367]
[1729627202149,0.074081,67524.0,67522.0,0.0615]
[1729627202442,0.17,67529.0,67523.0,0.07394074]
[1729627202739,0.17,67529.0,67522.0,0.135582]
[1729627202740,0.074082,67523.0,67522.0,0.07394074]
[1729627202939,0.074082,67523.0,67522.0,0.1692533]
[1729627203145,0.074082,67523.0,67522.0,0.07394074]
[1729627203441,0.074082,67523.0,67519.0,0.074086]
[1729627203442,0.17,67526.0,67521.0,0.07394074]
[1729627203650,0.17,67522.0,67521.0,0.07394074]
[1729627204039,0.17,67522.0,67521.0,0.16924768]
[1729627204240,0.17,67522.0,67520.0,0.07394074]